[Event "Late-Titled-Tuesday-Blitz-February-27-2024"]
[Site "Chess.com"]
[Date "2024.02.27"]
[Round "6"]
[White "CarlosjPineror"]
[Black "lagedema"]
[Result "1-0"]
[WhiteElo "2548"]
[BlackElo "2419"]
[TimeControl "180+1"]
[EndTime "15:04:52 PST"]
[Termination "CarlosjPineror won by resignation"]

1. e4 {[%clk 0:02:48.7]} 1... c6 {[%clk 0:02:59.8]} 2. d3 {[%clk 0:02:47.5]}
2... d5 {[%clk 0:03:00.1]} 3. Nd2 {[%clk 0:02:48.4]} 3... e5 {[%clk 0:02:59.8]}
4. Ngf3 {[%clk 0:02:45.9]} 4... Bd6 {[%clk 0:02:59.3]} 5. c3 {[%clk 0:02:45.1]}
5... Nf6 {[%clk 0:02:58.9]} 6. g3 {[%clk 0:02:44.4]} 6... O-O {[%clk 0:02:59.2]}
7. Bg2 {[%clk 0:02:44.7]} 7... Re8 {[%clk 0:02:59.8]} 8. O-O {[%clk 0:02:44.9]}
8... Nbd7 {[%clk 0:03:00.4]} 9. Re1 {[%clk 0:02:44.5]} 9... a5 {[%clk 0:03:00]}
10. a4 {[%clk 0:02:44.4]} 10... Nf8 {[%clk 0:03:00.3]} 11. h3 {[%clk 0:02:42.8]}
11... b6 {[%clk 0:02:59.8]} 12. Qc2 {[%clk 0:02:40.4]} 12... Ba6 {[%clk
0:02:58.4]} 13. Nf1 {[%clk 0:02:33.4]} 13... h6 {[%clk 0:02:58.2]} 14. Ne3
{[%clk 0:02:31.5]} 14... Rc8 {[%clk 0:02:57.6]} 15. Nf5 {[%clk 0:02:31.5]} 15...
Ng6 {[%clk 0:02:52.3]} 16. b3 {[%clk 0:02:18]} 16... Bf8 {[%clk 0:02:50.9]} 17.
Rd1 {[%clk 0:02:14.2]} 17... Qd7 {[%clk 0:02:47.4]} 18. Bb2 {[%clk 0:02:12.5]}
18... Qe6 {[%clk 0:02:44.9]} 19. c4 {[%clk 0:02:07.5]} 19... d4 {[%clk
0:02:32.7]} 20. Bc1 {[%clk 0:02:04.5]} 20... Ne7 {[%clk 0:02:29.7]} 21. g4
{[%clk 0:02:04.2]} 21... Nh7 {[%clk 0:02:23.3]} 22. Bd2 {[%clk 0:02:03]} 22...
Ng6 {[%clk 0:02:20.9]} 23. Re1 {[%clk 0:02:02.3]} 23... Bb4 {[%clk 0:02:21.1]}
24. Bxb4 {[%clk 0:01:58.2]} 24... axb4 {[%clk 0:02:22]} 25. Ng3 {[%clk
0:01:53.6]} 25... Nf4 {[%clk 0:02:21.6]} 26. Ne2 {[%clk 0:01:53.7]} 26... Nxg2
{[%clk 0:02:20.6]} 27. Kxg2 {[%clk 0:01:54.6]} 27... g6 {[%clk 0:02:18.7]} 28.
Ng3 {[%clk 0:01:52.5]} 28... Qf6 {[%clk 0:02:16.9]} 29. Qd2 {[%clk 0:01:52.7]}
29... c5 {[%clk 0:02:15.1]} 30. Qxh6 {[%clk 0:01:51.4]} 30... Ra8 {[%clk
0:02:13.1]} 31. h4 {[%clk 0:01:49.6]} 31... Bc8 {[%clk 0:02:11.6]} 32. Nh2
{[%clk 0:01:45.7]} 32... Qg7 {[%clk 0:02:03.2]} 33. Qd2 {[%clk 0:01:38.6]} 33...
Qf6 {[%clk 0:02:02.7]} 34. Qh6 {[%clk 0:01:38.2]} 34... Qg7 {[%clk 0:02:02.8]}
35. Qxg7+ {[%clk 0:01:38.5]} 35... Kxg7 {[%clk 0:02:02.6]} 36. Rf1 {[%clk
0:01:38.4]} 36... Nf6 {[%clk 0:02:00.9]} 37. g5 {[%clk 0:01:33.8]} 37... Nd7
{[%clk 0:01:57.7]} 38. Ng4 {[%clk 0:01:30]} 38... Rh8 {[%clk 0:01:58]} 39. Rh1
{[%clk 0:01:29.4]} 39... Bb7 {[%clk 0:01:55.2]} 40. Raf1 {[%clk 0:01:28.1]}
40... Rae8 {[%clk 0:01:51.3]} 41. f4 {[%clk 0:01:28.2]} 41... exf4 {[%clk
0:01:46.3]} 42. Rxf4 {[%clk 0:01:29.1]} 42... Ne5 {[%clk 0:01:46.6]} 43. Nxe5
{[%clk 0:01:29.2]} 43... Rxe5 {[%clk 0:01:47.5]} 44. Rhf1 {[%clk 0:01:16.3]}
44... Rf8 {[%clk 0:01:46.8]} 45. R1f2 {[%clk 0:01:15.7]} 45... Bc8 {[%clk
0:01:46.6]} 46. Nf1 {[%clk 0:01:15.8]} 46... Re7 {[%clk 0:01:40.6]} 47. Nh2
{[%clk 0:01:15.8]} 47... Be6 {[%clk 0:01:40.2]} 48. Ng4 {[%clk 0:01:14.7]} 48...
Rh8 {[%clk 0:01:40.8]} 49. Ne5 {[%clk 0:01:10.5]} 49... Ra7 {[%clk 0:01:38.5]}
50. Kg3 {[%clk 0:01:08.8]} 50... Rc7 {[%clk 0:01:36.2]} 51. Ng4 {[%clk
0:01:08.3]} 51... Ra7 {[%clk 0:01:33.1]} 52. Rf6 {[%clk 0:01:07.3]} 52... Re7
{[%clk 0:01:32.2]} 53. Ne5 {[%clk 0:01:06.3]} 53... Ree8 {[%clk 0:01:28.8]} 54.
Nxf7 {[%clk 0:01:05.8]} 54... b5 {[%clk 0:01:25.6]} 55. axb5 {[%clk 0:01:04.6]}
55... Rhf8 {[%clk 0:01:20.2]} 56. Ne5 {[%clk 0:01:03.7]} 56... Rxf6 {[%clk
0:01:17.8]} 57. Rxf6 {[%clk 0:01:04.6]} 57... Bxc4 {[%clk 0:01:13.1]} 58. Nxc4
{[%clk 0:01:02.9]} 1-0

[Event "Late-Titled-Tuesday-Blitz-February-27-2024"]
[Site "Chess.com"]
[Date "2024.02.27"]
[Round "6"]
[White "pr1105"]
[Black "dosto07"]
[Result "0-1"]
[WhiteElo "2350"]
[BlackElo "2510"]
[TimeControl "180+1"]
[EndTime "15:04:54 PST"]
[Termination "dosto07 won by resignation"]

1. e4 {[%clk 0:02:56.5]} 1... e5 {[%clk 0:02:58.9]} 2. Nf3 {[%clk 0:02:56.6]}
2... Nc6 {[%clk 0:02:57.2]} 3. Bc4 {[%clk 0:02:56.9]} 3... Bc5 {[%clk
0:02:56.6]} 4. c3 {[%clk 0:02:55.1]} 4... Nf6 {[%clk 0:02:56.7]} 5. d3 {[%clk
0:02:55.7]} 5... d6 {[%clk 0:02:56.6]} 6. O-O {[%clk 0:02:54.8]} 6... a6 {[%clk
0:02:56.9]} 7. a4 {[%clk 0:02:54.8]} 7... Ba7 {[%clk 0:02:57.2]} 8. Nbd2 {[%clk
0:02:53.7]} 8... O-O {[%clk 0:02:55.7]} 9. h3 {[%clk 0:02:53.1]} 9... Be6 {[%clk
0:02:54.5]} 10. Bxe6 {[%clk 0:02:45.2]} 10... fxe6 {[%clk 0:02:54.3]} 11. Re1
{[%clk 0:02:43.8]} 11... Qe8 {[%clk 0:02:53.5]} 12. Nf1 {[%clk 0:02:43.8]} 12...
Nh5 {[%clk 0:02:52.6]} 13. d4 {[%clk 0:02:17.4]} 13... Qf7 {[%clk 0:02:27.8]}
14. Be3 {[%clk 0:02:10]} 14... Nf4 {[%clk 0:02:20]} 15. Bxf4 {[%clk 0:02:04.6]}
15... Qxf4 {[%clk 0:02:17.9]} 16. Re2 {[%clk 0:01:41.1]} 16... Qh6 {[%clk
0:02:07.4]} 17. Re3 {[%clk 0:01:12.7]} 17... exd4 {[%clk 0:02:03.8]} 18. cxd4
{[%clk 0:01:13.5]} 18... e5 {[%clk 0:01:59.8]} 19. Qb3+ {[%clk 0:01:08.8]} 19...
Kh8 {[%clk 0:01:58.4]} 20. Qxb7 {[%clk 0:01:08]} 20... Nxd4 {[%clk 0:01:57.2]}
21. N1h2 {[%clk 0:00:51.4]} 21... Nc2 {[%clk 0:01:51.4]} 22. Rae1 {[%clk
0:00:47.6]} 22... Bxe3 {[%clk 0:01:45.5]} 23. Ng4 {[%clk 0:00:42.5]} 23... Qe6
{[%clk 0:01:39.9]} 24. Rxe3 {[%clk 0:00:40.7]} 24... Nxe3 {[%clk 0:01:39.5]} 25.
Nxe3 {[%clk 0:00:41.6]} 25... Qc8 {[%clk 0:01:21.4]} 26. Qd5 {[%clk 0:00:34]}
26... Rb8 {[%clk 0:01:18.4]} 27. Ng5 {[%clk 0:00:30.6]} 27... Qd7 {[%clk
0:01:12.1]} 28. Nc4 {[%clk 0:00:23.7]} 28... h6 {[%clk 0:01:06.7]} 29. Nxe5
{[%clk 0:00:22.9]} 29... Qe8 {[%clk 0:01:00.3]} 30. Nef7+ {[%clk 0:00:18]} 30...
Rxf7 {[%clk 0:00:59.3]} 31. Nxf7+ {[%clk 0:00:18.9]} 31... Kh7 {[%clk
0:00:58.3]} 32. Qf5+ {[%clk 0:00:13.6]} 32... Kg8 {[%clk 0:00:56.6]} 33. Nxh6+
{[%clk 0:00:06.4]} 33... gxh6 {[%clk 0:00:56.4]} 34. Qd5+ {[%clk 0:00:07.3]}
34... Qf7 {[%clk 0:00:54.5]} 0-1

[Event "Late-Titled-Tuesday-Blitz-February-27-2024"]
[Site "Chess.com"]
[Date "2024.02.27"]
[Round "6"]
[White "GarciaIsaac"]
[Black "Cristi_Coca"]
[Result "1-0"]
[WhiteElo "2673"]
[BlackElo "2371"]
[TimeControl "180+1"]
[EndTime "15:04:56 PST"]
[Termination "GarciaIsaac won by resignation"]

1. e4 {[%clk 0:03:00.9]} 1... c5 {[%clk 0:02:57.5]} 2. Nc3 {[%clk 0:02:56.2]}
2... e6 {[%clk 0:02:57]} 3. d4 {[%clk 0:02:52.4]} 3... cxd4 {[%clk 0:02:55.8]}
4. Qxd4 {[%clk 0:02:53.3]} 4... a6 {[%clk 0:02:55.8]} 5. Bf4 {[%clk 0:02:51.2]}
5... Nc6 {[%clk 0:02:53.3]} 6. Qd3 {[%clk 0:02:49.9]} 6... Bb4 {[%clk
0:02:44.7]} 7. O-O-O {[%clk 0:02:49.3]} 7... Nge7 {[%clk 0:02:43.3]} 8. Bd6
{[%clk 0:02:43.2]} 8... Bxd6 {[%clk 0:02:42]} 9. Qxd6 {[%clk 0:02:44.1]} 9...
Qa5 {[%clk 0:02:42]} 10. Nf3 {[%clk 0:02:37.5]} 10... O-O {[%clk 0:02:33.8]} 11.
Kb1 {[%clk 0:02:31.6]} 11... b5 {[%clk 0:02:32.3]} 12. h4 {[%clk 0:02:22.2]}
12... b4 {[%clk 0:02:20.6]} 13. Ne2 {[%clk 0:02:21.1]} 13... f5 {[%clk
0:02:13.2]} 14. e5 {[%clk 0:01:56.1]} 14... Nd5 {[%clk 0:02:04.9]} 15. Ned4
{[%clk 0:01:52.9]} 15... Nce7 {[%clk 0:01:23.9]} 16. Bc4 {[%clk 0:01:41.7]}
16... Qc7 {[%clk 0:01:05.7]} 17. Bb3 {[%clk 0:01:30]} 17... Bb7 {[%clk
0:01:02.2]} 18. Ng5 {[%clk 0:01:09.3]} 18... Qxd6 {[%clk 0:00:50.5]} 19. exd6
{[%clk 0:01:10.2]} 19... Nc8 {[%clk 0:00:49.7]} 20. Ndxe6 {[%clk 0:01:03]} 20...
dxe6 {[%clk 0:00:44]} 21. Nxe6 {[%clk 0:01:03.9]} 21... Rf6 {[%clk 0:00:41.2]}
22. Nc7 {[%clk 0:00:43.4]} 22... Rxd6 {[%clk 0:00:35.7]} 23. Nxd5 {[%clk
0:00:42.4]} 23... Kf8 {[%clk 0:00:25.9]} 24. Rhe1 {[%clk 0:00:39.2]} 24... Bxd5
{[%clk 0:00:23.2]} 25. Bxd5 {[%clk 0:00:40.1]} 25... Ra7 {[%clk 0:00:22.7]} 26.
Be6 {[%clk 0:00:26.2]} 26... Re7 {[%clk 0:00:19.9]} 27. Bxc8 {[%clk 0:00:24.8]}
1-0

[Event "Late-Titled-Tuesday-Blitz-February-27-2024"]
[Site "Chess.com"]
[Date "2024.02.27"]
[Round "6"]
[White "AcostaPablo"]
[Black "KorolDimitriy75"]
[Result "1-0"]
[WhiteElo "2632"]
[BlackElo "2454"]
[TimeControl "180+1"]
[EndTime "15:04:58 PST"]
[Termination "AcostaPablo won on time"]

1. c4 {[%clk 0:02:51.1]} 1... c5 {[%clk 0:03:00.2]} 2. Nc3 {[%clk 0:02:51.6]}
2... g6 {[%clk 0:03:00.6]} 3. g3 {[%clk 0:02:50.8]} 3... Bg7 {[%clk 0:03:01]} 4.
Bg2 {[%clk 0:02:51.6]} 4... Nc6 {[%clk 0:03:01.5]} 5. Nf3 {[%clk 0:02:52.2]}
5... Nh6 {[%clk 0:03:01.7]} 6. O-O {[%clk 0:02:52.7]} 6... Nf5 {[%clk
0:03:01.8]} 7. e3 {[%clk 0:02:52.3]} 7... h5 {[%clk 0:03:02]} 8. h4 {[%clk
0:02:51.8]} 8... a6 {[%clk 0:03:02]} 9. Qe2 {[%clk 0:02:49.1]} 9... Rb8 {[%clk
0:03:01.1]} 10. Rd1 {[%clk 0:02:47.7]} 10... O-O {[%clk 0:02:49.7]} 11. Ng5
{[%clk 0:02:42.2]} 11... d6 {[%clk 0:02:46.1]} 12. Nd5 {[%clk 0:02:30.2]} 12...
Bd7 {[%clk 0:02:40.9]} 13. Nf4 {[%clk 0:02:29.4]} 13... Nh6 {[%clk 0:02:17.6]}
14. Bd5 {[%clk 0:02:23.8]} 14... e6 {[%clk 0:02:11.7]} 15. Bg2 {[%clk
0:02:19.4]} 15... b5 {[%clk 0:02:05.5]} 16. d3 {[%clk 0:02:13.7]} 16... Qe7
{[%clk 0:01:59.2]} 17. Rb1 {[%clk 0:02:10.5]} 17... Rfc8 {[%clk 0:01:52.6]} 18.
b3 {[%clk 0:02:00.6]} 18... Ne5 {[%clk 0:00:52.2]} 19. Bb2 {[%clk 0:01:55.7]}
19... Bc6 {[%clk 0:00:45.6]} 20. d4 {[%clk 0:01:40.7]} 20... Bxg2 {[%clk
0:00:42.7]} 21. dxe5 {[%clk 0:01:31]} 21... dxe5 {[%clk 0:00:41.5]} 22. Nxg6
{[%clk 0:01:28]} 22... Qb7 {[%clk 0:00:20.1]} 23. Nxe5 {[%clk 0:01:02.4]} 23...
Be4 {[%clk 0:00:11.1]} 24. Nxe4 {[%clk 0:00:54.8]} 24... Qxe4 {[%clk 0:00:12]}
25. Nd7 {[%clk 0:00:54.5]} 25... Rb7 {[%clk 0:00:07]} 26. Bxg7 {[%clk 0:00:53]}
26... Kxg7 {[%clk 0:00:06.5]} 27. Qb2+ {[%clk 0:00:53.4]} 27... e5 {[%clk
0:00:04.2]} 28. Qxe5+ {[%clk 0:00:51]} 28... Qxe5 {[%clk 0:00:04.1]} 29. Nxe5
{[%clk 0:00:51.9]} 29... Nf5 {[%clk 0:00:01.7]} 30. Rbc1 {[%clk 0:00:49.5]} 1-0

[Event "Late-Titled-Tuesday-Blitz-February-27-2024"]
[Site "Chess.com"]
[Date "2024.02.27"]
[Round "6"]
[White "ImportedItalianMaple"]
[Black "Nemsko"]
[Result "1/2-1/2"]
[WhiteElo "2513"]
[BlackElo "2397"]
[TimeControl "180+1"]
[EndTime "15:04:58 PST"]
[Termination "Game drawn by repetition"]

1. Nf3 {[%clk 0:03:00.9]} 1... Nf6 {[%clk 0:02:59.7]} 2. g3 {[%clk 0:03:00.6]}
2... d5 {[%clk 0:03:00.1]} 3. Bg2 {[%clk 0:03:01]} 3... e6 {[%clk 0:03:00.6]} 4.
O-O {[%clk 0:03:01.6]} 4... Bd6 {[%clk 0:03:01.2]} 5. c4 {[%clk 0:03:02.3]} 5...
O-O {[%clk 0:03:01.3]} 6. d4 {[%clk 0:02:55.4]} 6... c6 {[%clk 0:03:00.3]} 7.
Nc3 {[%clk 0:02:52.1]} 7... Nbd7 {[%clk 0:02:59.3]} 8. Nd2 {[%clk 0:02:49.8]}
8... Qe7 {[%clk 0:02:54]} 9. e4 {[%clk 0:02:49.1]} 9... dxe4 {[%clk 0:02:53.8]}
10. Ndxe4 {[%clk 0:02:49.8]} 10... Nxe4 {[%clk 0:02:53.7]} 11. Nxe4 {[%clk
0:02:50.5]} 11... Bc7 {[%clk 0:02:52.7]} 12. Qc2 {[%clk 0:02:48.6]} 12... h6
{[%clk 0:02:45.5]} 13. b3 {[%clk 0:02:42.4]} 13... Nf6 {[%clk 0:02:45.1]} 14.
Nxf6+ {[%clk 0:02:42.3]} 14... Qxf6 {[%clk 0:02:46]} 15. Bb2 {[%clk 0:02:42.8]}
15... Qg5 {[%clk 0:02:36.6]} 16. Rfe1 {[%clk 0:02:34.8]} 16... Re8 {[%clk
0:02:24.3]} 17. d5 {[%clk 0:02:24.1]} 17... cxd5 {[%clk 0:02:18.2]} 18. cxd5
{[%clk 0:02:24.5]} 18... Bd6 {[%clk 0:02:08.8]} 19. Rad1 {[%clk 0:02:17]} 19...
e5 {[%clk 0:02:07.5]} 20. f4 {[%clk 0:02:07.7]} 20... Qh5 {[%clk 0:02:02.6]} 21.
fxe5 {[%clk 0:01:58.4]} 21... Bxe5 {[%clk 0:02:02.3]} 22. Bxe5 {[%clk
0:01:16.5]} 22... Rxe5 {[%clk 0:02:03.2]} 23. Qc7 {[%clk 0:01:00.9]} 23... Rxe1+
{[%clk 0:01:55.2]} 24. Rxe1 {[%clk 0:01:01.8]} 24... Bh3 {[%clk 0:01:50.1]} 25.
Qxb7 {[%clk 0:00:53.2]} 25... Rd8 {[%clk 0:01:46.5]} 26. Qe7 {[%clk 0:00:33.2]}
26... Rd7 {[%clk 0:01:39.7]} 27. Qe8+ {[%clk 0:00:20.6]} 27... Kh7 {[%clk
0:01:39.8]} 28. Be4+ {[%clk 0:00:20.7]} 28... g6 {[%clk 0:01:33.9]} 29. Qb8
{[%clk 0:00:14.1]} 29... Bf5 {[%clk 0:01:27.1]} 30. Qf4 {[%clk 0:00:13.5]} 30...
Bxe4 {[%clk 0:01:25]} 31. Qxe4 {[%clk 0:00:12.7]} 31... Rxd5 {[%clk 0:01:22.1]}
32. Rf1 {[%clk 0:00:12.6]} 32... Rd7 {[%clk 0:01:20.7]} 33. Qa4 {[%clk
0:00:11.4]} 33... Qc5+ {[%clk 0:01:20.7]} 34. Kg2 {[%clk 0:00:10.6]} 34... Kg7
{[%clk 0:01:15.9]} 35. Qf4 {[%clk 0:00:08.9]} 35... Qd5+ {[%clk 0:01:14.2]} 36.
Qf3 {[%clk 0:00:08.8]} 36... Qe6 {[%clk 0:01:13.2]} 37. Rf2 {[%clk 0:00:08.9]}
37... Kh7 {[%clk 0:01:12.3]} 38. Qc3 {[%clk 0:00:09.2]} 38... Qe4+ {[%clk
0:01:09.6]} 39. Qf3 {[%clk 0:00:09.7]} 39... Qe6 {[%clk 0:01:09.9]} 40. Qf6
{[%clk 0:00:10.2]} 40... Qe4+ {[%clk 0:01:06.3]} 41. Qf3 {[%clk 0:00:10.4]}
41... Qe6 {[%clk 0:01:00.7]} 1/2-1/2

[Event "Late-Titled-Tuesday-Blitz-February-27-2024"]
[Site "Chess.com"]
[Date "2024.02.27"]
[Round "6"]
[White "NateSolon"]
[Black "rasmussvane"]
[Result "0-1"]
[WhiteElo "2686"]
[BlackElo "2935"]
[TimeControl "180+1"]
[EndTime "15:05:00 PST"]
[Termination "rasmussvane won by resignation"]

1. d4 {[%clk 0:03:00.9]} 1... d5 {[%clk 0:02:51.9]} 2. Bf4 {[%clk 0:03:00.9]}
2... Nf6 {[%clk 0:02:51.6]} 3. e3 {[%clk 0:03:00.8]} 3... c5 {[%clk 0:02:48]} 4.
Nf3 {[%clk 0:03:00.7]} 4... Nc6 {[%clk 0:02:41.3]} 5. Nbd2 {[%clk 0:03:00.5]}
5... Bg4 {[%clk 0:02:36]} 6. h3 {[%clk 0:02:57.5]} 6... Bxf3 {[%clk 0:02:27.4]}
7. Nxf3 {[%clk 0:02:58.4]} 7... e6 {[%clk 0:02:27.8]} 8. c3 {[%clk 0:02:44.3]}
8... Bd6 {[%clk 0:02:27.6]} 9. dxc5 {[%clk 0:02:44.6]} 9... Bxc5 {[%clk
0:02:25.8]} 10. Bd3 {[%clk 0:02:43]} 10... Bd6 {[%clk 0:02:21.5]} 11. Bxd6
{[%clk 0:01:59.3]} 11... Qxd6 {[%clk 0:02:22.4]} 12. O-O {[%clk 0:01:58.3]}
12... O-O {[%clk 0:01:55.6]} 13. c4 {[%clk 0:01:51]} 13... Rfd8 {[%clk
0:01:55.1]} 14. cxd5 {[%clk 0:01:48.3]} 14... Qxd5 {[%clk 0:01:53.1]} 15. Be2
{[%clk 0:01:48.6]} 15... Qc5 {[%clk 0:01:49.5]} 16. Qa4 {[%clk 0:01:46.4]} 16...
Qb6 {[%clk 0:01:48.4]} 17. b3 {[%clk 0:01:36.4]} 17... Nd5 {[%clk 0:01:41.7]}
18. Rac1 {[%clk 0:01:35.8]} 18... Nxe3 {[%clk 0:01:35.6]} 19. Rfe1 {[%clk
0:01:13.9]} 19... Nf5 {[%clk 0:01:29.3]} 20. Qf4 {[%clk 0:01:06]} 20... h6
{[%clk 0:01:23.8]} 21. Bc4 {[%clk 0:01:05.7]} 21... Nfd4 {[%clk 0:01:19.4]} 22.
Nxd4 {[%clk 0:01:01.2]} 22... Rxd4 {[%clk 0:01:19.4]} 23. Qg3 {[%clk 0:00:54.3]}
23... Rad8 {[%clk 0:01:18]} 24. Re2 {[%clk 0:00:42.6]} 24... Rd1+ {[%clk
0:01:13.6]} 25. Rxd1 {[%clk 0:00:42.9]} 25... Rxd1+ {[%clk 0:01:14.2]} 26. Kh2
{[%clk 0:00:43.6]} 26... Qd4 {[%clk 0:01:12.9]} 27. Qc7 {[%clk 0:00:39.8]} 27...
Qd6+ {[%clk 0:01:07.1]} 28. Qxd6 {[%clk 0:00:39.4]} 28... Rxd6 {[%clk 0:01:08]}
29. f4 {[%clk 0:00:37.8]} 29... g6 {[%clk 0:01:02.7]} 30. g4 {[%clk 0:00:37]}
30... Kg7 {[%clk 0:01:03.1]} 31. Kg3 {[%clk 0:00:37.2]} 31... a6 {[%clk
0:01:02.6]} 32. Rf2 {[%clk 0:00:33.8]} 32... b5 {[%clk 0:00:59.2]} 33. Bf1
{[%clk 0:00:33.8]} 33... Kf6 {[%clk 0:00:57.3]} 34. g5+ {[%clk 0:00:30.6]} 34...
hxg5 {[%clk 0:00:55.3]} 35. fxg5+ {[%clk 0:00:31.5]} 35... Ke7 {[%clk
0:00:54.5]} 36. h4 {[%clk 0:00:30.6]} 36... Nd4 {[%clk 0:00:54.4]} 37. Bh3
{[%clk 0:00:24.7]} 37... Rc6 {[%clk 0:00:52.4]} 38. Rd2 {[%clk 0:00:22.4]} 38...
Rc3+ {[%clk 0:00:52.4]} 39. Kg2 {[%clk 0:00:22.6]} 39... Nf3 {[%clk 0:00:50.8]}
0-1

[Event "Late-Titled-Tuesday-Blitz-February-27-2024"]
[Site "Chess.com"]
[Date "2024.02.27"]
[Round "6"]
[White "kai_nov"]
[Black "yuriydovzik"]
[Result "1-0"]
[WhiteElo "2326"]
[BlackElo "2120"]
[TimeControl "180+1"]
[EndTime "15:05:07 PST"]
[Termination "kai_nov won on time"]

1. d4 {[%clk 0:03:00.9]} 1... Nf6 {[%clk 0:02:58.4]} 2. c4 {[%clk 0:02:56.2]}
2... e6 {[%clk 0:02:56.9]} 3. Nc3 {[%clk 0:02:55.9]} 3... Bb4 {[%clk 0:02:53.3]}
4. f3 {[%clk 0:02:55.8]} 4... d5 {[%clk 0:02:48.2]} 5. a3 {[%clk 0:02:54.7]}
5... Bxc3+ {[%clk 0:02:39.7]} 6. bxc3 {[%clk 0:02:55.6]} 6... O-O {[%clk
0:02:38.1]} 7. e3 {[%clk 0:02:55.6]} 7... b6 {[%clk 0:02:35.9]} 8. cxd5 {[%clk
0:02:55.5]} 8... exd5 {[%clk 0:02:34.9]} 9. Bd3 {[%clk 0:02:55.6]} 9... c5
{[%clk 0:02:30.6]} 10. Ne2 {[%clk 0:02:55.1]} 10... Ba6 {[%clk 0:02:25.9]} 11.
O-O {[%clk 0:02:48.8]} 11... Re8 {[%clk 0:02:19.1]} 12. Ng3 {[%clk 0:02:41.6]}
12... Bxd3 {[%clk 0:02:02.8]} 13. Qxd3 {[%clk 0:02:42.5]} 13... Nc6 {[%clk
0:02:00.1]} 14. Bb2 {[%clk 0:02:33.8]} 14... Na5 {[%clk 0:01:57.9]} 15. Rae1
{[%clk 0:02:26.9]} 15... Re6 {[%clk 0:01:45]} 16. e4 {[%clk 0:02:19.9]} 16...
cxd4 {[%clk 0:01:28.5]} 17. cxd4 {[%clk 0:02:18.7]} 17... Qd7 {[%clk 0:01:18.4]}
18. e5 {[%clk 0:02:09.5]} 18... Ne8 {[%clk 0:01:17.4]} 19. f4 {[%clk 0:02:09.7]}
19... Rc6 {[%clk 0:01:09.5]} 20. f5 {[%clk 0:01:57.1]} 20... Rac8 {[%clk
0:01:06.8]} 21. e6 {[%clk 0:01:24.2]} 21... fxe6 {[%clk 0:00:48.2]} 22. fxe6
{[%clk 0:01:23.6]} 22... Rxe6 {[%clk 0:00:42.6]} 23. Qf5 {[%clk 0:01:16.9]}
23... Nc7 {[%clk 0:00:36.7]} 24. Bc3 {[%clk 0:01:04.6]} 24... g6 {[%clk
0:00:31.1]} 25. Qg4 {[%clk 0:00:54.1]} 25... Nc4 {[%clk 0:00:19.5]} 26. Nh5
{[%clk 0:00:42.6]} 26... Qe7 {[%clk 0:00:07.9]} 27. Bb4 {[%clk 0:00:35]} 1-0

[Event "Late-Titled-Tuesday-Blitz-February-27-2024"]
[Site "Chess.com"]
[Date "2024.02.27"]
[Round "6"]
[White "Seochesspie"]
[Black "ozates"]
[Result "1-0"]
[WhiteElo "2886"]
[BlackElo "2615"]
[TimeControl "180+1"]
[EndTime "15:05:08 PST"]
[Termination "Seochesspie won by resignation"]

1. e4 {[%clk 0:03:00.9]} 1... e5 {[%clk 0:02:22.9]} 2. Nf3 {[%clk 0:03:00.3]}
2... Nc6 {[%clk 0:02:21.4]} 3. Bb5 {[%clk 0:03:00.3]} 3... a6 {[%clk 0:02:16]}
4. Ba4 {[%clk 0:03:00.6]} 4... d6 {[%clk 0:02:16.3]} 5. c3 {[%clk 0:03:00]} 5...
Bd7 {[%clk 0:02:16.5]} 6. d4 {[%clk 0:02:58.7]} 6... g6 {[%clk 0:02:14.9]} 7.
O-O {[%clk 0:02:58.4]} 7... Bg7 {[%clk 0:02:14.6]} 8. Re1 {[%clk 0:02:57.7]}
8... Nge7 {[%clk 0:02:14.7]} 9. Be3 {[%clk 0:02:55.8]} 9... O-O {[%clk
0:02:14.4]} 10. Nbd2 {[%clk 0:02:55.7]} 10... h6 {[%clk 0:02:12.2]} 11. Bc2
{[%clk 0:02:50.3]} 11... f5 {[%clk 0:01:47.6]} 12. dxe5 {[%clk 0:02:34.7]} 12...
f4 {[%clk 0:01:44.8]} 13. exd6 {[%clk 0:02:27.3]} 13... fxe3 {[%clk 0:01:43.9]}
14. dxe7 {[%clk 0:02:27.1]} 14... exf2+ {[%clk 0:01:39]} 15. Kxf2 {[%clk
0:02:27]} 15... Qxe7 {[%clk 0:01:38.9]} 16. Kg1 {[%clk 0:02:25.4]} 16... Rad8
{[%clk 0:01:33.8]} 17. Qe2 {[%clk 0:02:21]} 17... Bg4 {[%clk 0:01:32.3]} 18. Qe3
{[%clk 0:02:11.4]} 18... Ne5 {[%clk 0:01:19]} 19. Nxe5 {[%clk 0:02:11.2]} 19...
Bxe5 {[%clk 0:01:10.3]} 20. Nf3 {[%clk 0:01:55.6]} 20... Bxf3 {[%clk 0:01:03.4]}
21. gxf3 {[%clk 0:01:55.6]} 21... Bf4 {[%clk 0:01:03.8]} 22. Qf2 {[%clk
0:01:51.9]} 22... Rd2 {[%clk 0:00:39.4]} 23. Re2 {[%clk 0:01:51.9]} 23... Rfd8
{[%clk 0:00:39.7]} 24. Rae1 {[%clk 0:01:48.1]} 24... Kg7 {[%clk 0:00:17.8]} 25.
Bb3 {[%clk 0:01:42.5]} 25... Qg5+ {[%clk 0:00:15.2]} 26. Kh1 {[%clk 0:01:42.4]}
26... c5 {[%clk 0:00:11.5]} 27. Bd5 {[%clk 0:01:39.7]} 27... Rd3 {[%clk
0:00:06.8]} 28. Rf1 {[%clk 0:01:36.1]} 28... b6 {[%clk 0:00:06.6]} 29. a4 {[%clk
0:01:30.9]} 29... Be5 {[%clk 0:00:06.2]} 30. Qg2 {[%clk 0:01:24.6]} 30... Qf4
{[%clk 0:00:05.5]} 31. Ref2 {[%clk 0:01:20.8]} 31... g5 {[%clk 0:00:05.8]} 32.
Qh3 {[%clk 0:01:19.6]} 32... Rf8 {[%clk 0:00:05.9]} 33. Bc4 {[%clk 0:01:11.1]}
33... Rd6 {[%clk 0:00:05.1]} 34. Bxa6 {[%clk 0:01:05.8]} 34... h5 {[%clk
0:00:05.6]} 35. Bc4 {[%clk 0:01:00.1]} 35... g4 {[%clk 0:00:06]} 36. Qg2 {[%clk
0:00:59.7]} 36... Kh8 {[%clk 0:00:05.1]} 37. fxg4 {[%clk 0:00:57.6]} 37... Qxf2
{[%clk 0:00:05.5]} 38. Rxf2 {[%clk 0:00:57.8]} 38... Rd1+ {[%clk 0:00:05.8]} 39.
Bf1 {[%clk 0:00:57.4]} 1-0